fUST/lending_fUST_20251011
["ID","MTS","AMOUNT","RATE_DAILY","PERIOD"]
[390722583,1760130649163,-1000.0,0.00028692,2]
[390722585,1760130649172,-2108.69360546,0.00028692,30]
[390722590,1760130649208,-503.00471054,0.00028692,30]
[390722592,1760130649217,-479.021299,0.00028692,30]
[390722594,1760130649226,-1000.0,0.00028692,2]
[390722596,1760130649237,-2611.698316,0.00028692,30]
[390722598,1760130649246,-1000.0,0.00028692,2]
[390722600,1760130649257,-1000.0,0.00028692,2]
[390722602,1760130649266,-1000.0,0.00028692,2]
[390722604,1760130649275,-479.021299,0.00028692,30]
[390722606,1760130649283,-1000.0,0.00028692,2]
[390722608,1760130649292,-479.021299,0.00028692,30]
[390722610,1760130649301,-151.0,0.00028692,30]
[390722611,1760130649311,-1000.0,0.00028692,2]
[390722612,1760130649320,-926.82794371,0.00028692,30]
[390722613,1760130649331,-1684.87037229,0.00028692,30]
[390722614,1760130649341,-151.0,0.00028692,30]
[390722615,1760130649351,-1000.0,0.00028692,2]
[390722616,1760130649360,-1000.0,0.00028692,2]
[390722617,1760130649370,-2611.698316,0.00028692,30]
[390722618,1760130649379,-1000.0,0.00028692,2]
[390722620,1760130649388,-479.021299,0.00028692,30]
[390722622,1760130649397,-1000.0,0.00028692,2]
[390722624,1760130649410,-479.021299,0.00028692,30]
[390722626,1760130649422,-1000.0,0.00028692,2]
[390722628,1760130649433,-1000.0,0.00028692,2]
[390722630,1760130649444,-2611.698316,0.00028692,30]
[390722632,1760130649454,-1000.0,0.00028692,2]
[390722634,1760130649463,-2611.698316,0.00028692,30]
[390722636,1760130649473,-1000.0,0.00028692,2]
[390722638,1760130649484,-918.48786001,0.00028692,2]
[390722643,1760130649524,-81.51213999,0.00028692,2]
[390722644,1760130649533,-1000.0,0.00028692,2]
[390722647,1760130649545,-1000.0,0.00028692,2]
[390722648,1760130649554,-2611.698316,0.00028692,30]
[390722650,1760130649564,-1000.0,0.00028692,2]
[390722652,1760130649573,-6.78954401,0.00028692,30]
[390722657,1760130649609,-2604.90877199,0.00028692,30]
[390722659,1760130649618,-44.46338744,0.00028692,2]
[390722663,1760130649641,-309.25713735,0.00028692,2]
[390724686,1760131462518,720.05679079,0.00017,10]
[390724744,1760131719452,5142.52651334,0.00024,60]
[390724757,1760131749331,262.6887935,0.00017,10]
[390724769,1760131813571,200.06935852,0.000285,120]
[390724822,1760131833113,-151.0,0.00017,2]
[390724823,1760131833124,-104.49749186,0.00017,2]
[390724824,1760131833137,-45.50250814,0.00017,2]
[390724825,1760131833148,-500.0,0.00017,2]
[390724826,1760131833158,-200.0,0.00017,2]
[390724827,1760131833169,-1000.0,0.00017546,2]
[390724828,1760131833178,-151.0,0.0001755,2]
[390724829,1760131833187,-172.5,0.000176,2]
[390724830,1760131833197,-2041.4086641,0.00017845,2]
[390724832,1760131833207,-168.30076101,0.000179,2]
[390724834,1760131833217,-300.0,0.00017999,2]
[390724835,1760131833228,-1200.0,0.00017999,2]
[390724837,1760131833238,-53642.42349401,0.00018,2]
[390724840,1760131833250,-877.51855693,0.00018,2]
[390724844,1760131833286,-2243.58602844,0.00018,2]
[390724846,1760131833299,-407.125,0.00018,2]
[390724848,1760131833311,-1108.14956002,0.00018,2]
[390724850,1760131833324,-404.05,0.00018,2]
[390724853,1760131833338,-5960.4063885,0.00018,2]
[390724855,1760131833348,-1999.00211643,0.00018,2]
[390724856,1760131833359,-151.0,0.000181,2]
[390724857,1760131833369,-500.0,0.00018133,2]
[390724858,1760131833380,-500.0,0.00018133,2]
[390724859,1760131833391,-500.0,0.00018133,2]
[390724860,1760131833401,-500.0,0.00018133,2]
[390724861,1760131833412,-500.0,0.00018133,2]
[390724863,1760131833422,-500.0,0.00018133,2]
[390724864,1760131833433,-500.0,0.00018199,2]
[390724866,1760131833443,-500.0,0.00018199,2]
[390724868,1760131833453,-500.0,0.00018199,2]
[390724871,1760131833463,-500.0,0.00018199,2]
[390724874,1760131833473,-454.91864507,0.00018199,2]
[390724877,1760131833484,-500.0,0.00018199,2]
[390724879,1760131833494,-500.0,0.00018199,2]
[390724881,1760131833504,-500.0,0.00018199,2]
[390724882,1760131833514,-500.0,0.00018199,2]
[390724883,1760131833523,-500.0,0.00018199,2]
[390724884,1760131833536,-500.0,0.00018199,2]
[390724885,1760131833546,-514.57280496,0.00018199,2]
[390724886,1760131833556,-500.0,0.00018199,2]
[390724887,1760131833565,-342.50591478,0.00018199,2]
[390724888,1760131833576,-181.34890418,0.00018199,2]
[390724889,1760131833587,-500.0,0.00018199,2]
[390724890,1760131833597,-500.0,0.00018199,2]
[390724891,1760131833607,-500.0,0.00018199,2]
[390724892,1760131833617,-500.0,0.00018199,2]
[390724893,1760131833627,-500.0,0.00018199,2]
[390724894,1760131833637,-500.0,0.00018199,2]
[390724895,1760131833647,-500.0,0.00018199,2]
[390724896,1760131833657,-500.0,0.00018199,2]
[390724897,1760131833667,-500.0,0.00018199,2]
[390724898,1760131833677,-500.0,0.00018199,2]
[390724899,1760131833687,-435.46694199,0.00018199,2]
[390724900,1760131833697,-500.0,0.00018199,2]
[390724901,1760131833707,-500.0,0.00018199,2]
[390724902,1760131833717,-500.0,0.00018199,2]
[390724903,1760131833727,-500.0,0.00018199,2]
[390724904,1760131833736,-500.0,0.00018199,2]
[390724905,1760131833747,-500.0,0.00018199,2]
[390724906,1760131833761,-500.0,0.00018199,2]
[390724907,1760131833770,-500.0,0.00018199,2]
[390724908,1760131833781,-500.0,0.00018199,2]
[390724909,1760131833791,-500.0,0.00018199,2]
[390724910,1760131833803,-500.0,0.00018199,2]
[390724911,1760131833815,-500.0,0.00018199,2]
[390724912,1760131833826,-500.0,0.00018199,2]
[390724913,1760131833838,-500.0,0.00018199,2]
[390724914,1760131833848,-500.0,0.00018199,2]
[390724915,1760131833859,-500.0,0.00018199,2]
[390724916,1760131833869,-500.0,0.00018199,2]
[390724917,1760131833879,-195.0,0.000182,2]
[390724918,1760131833890,-50000.0,0.000182,2]
[390724919,1760131833899,-500.0,0.00018473,2]
[390724920,1760131833909,-1000.0,0.00018681,2]
[390724921,1760131833919,-500.0,0.00018681,2]
[390724924,1760131833928,-1000.0,0.00018681,2]
[390724926,1760131833938,-1000.0,0.00018681,2]
[390724928,1760131833948,-503.6411007,0.00018681,2]
[390724929,1760131833958,-217.5,0.000188,2]
[390724930,1760131833967,-1500.0,0.00019229,2]
[390724931,1760131833976,-268.51685501,0.00019229,2]
[390724932,1760131833986,-1000.0,0.00019229,2]
[390724933,1760131833996,-187.13,0.00019243,2]
[390724934,1760131834006,-240.0,0.000194,2]
[390724936,1760131834015,-160.0,0.00019457,2]
[390724938,1760131834025,-298.03512572,0.00019457,2]
[390724940,1760131834034,-227.40347426,0.000195,2]
[390724942,1760131834044,-194.54121638,0.000195,2]
[390724944,1760131834053,-193.15005653,0.000195,2]
[390724946,1760131834063,-160.0,0.000195,2]
[390724948,1760131834072,-447.7143097,0.000195,2]
[390724950,1760131834083,-468.71407233,0.000195,2]
[390724952,1760131834095,-160.30761547,0.000195,2]
[390724954,1760131834107,-194.54121638,0.000197,2]
[390724955,1760131834117,-193.15005653,0.000197,2]
[390724957,1760131834128,-160.0,0.000197,2]
[390724959,1760131834139,-447.7143097,0.000197,2]
[390724961,1760131834149,-468.71407233,0.000197,2]
[390724963,1760131834159,-160.30761547,0.000197,2]
[390724965,1760131834168,-500.0,0.00019777,2]
[390724967,1760131834178,-447.7143097,0.000198,2]
[390724969,1760131834187,-468.71407233,0.000198,2]
[390724971,1760131834197,-5000.0,0.00019926,2]
[390724973,1760131834206,-5000.0,0.00019926,2]
[390724975,1760131834216,-5000.0,0.00019926,2]
[390724977,1760131834226,-447.7143097,0.0002,2]
[390724978,1760131834236,-468.71407233,0.0002,2]
[390724980,1760131834245,-262.5,0.0002,2]
[390724982,1760131834255,-2369.9055545,0.0002,2]
[390724984,1760131834264,-447.7143097,0.000202,2]
[390724986,1760131834274,-468.71407233,0.000202,2]
[390724988,1760131834283,-285.0,0.000206,2]
[390724990,1760131834293,-1161.74983464,0.000209,2]
[390724992,1760131834303,-374.27,0.00020993,2]
[390724994,1760131834312,-4573.11849524,0.00021,4]
[390724996,1760131834322,-499.999999,0.00021,2]
[390724998,1760131834333,-329.16227782,0.00021392,2]
[390725000,1760131834342,-168.300761,0.00021716,2]
[390725001,1760131834352,-500.0,0.00022275,2]
[390725002,1760131834361,-1161.74983464,0.00022713,2]
[390725004,1760131834371,-561.4,0.00022742,2]
[390725006,1760131834380,-25437.35065427,0.0002289,2]
[390725008,1760131834389,-400.96658666,0.00022989,2]
[390725010,1760131834398,-166.15532926,0.00022989,2]
[390725012,1760131834408,-77986.07431444,0.0002299,2]
[390725014,1760131834420,-22013.92568556,0.0002299,2]
[390725016,1760131834430,-101043.06966134,0.00023,7]
[390725018,1760131834441,-5927.07429304,0.00023,7]
[390725020,1760131834454,-722.02233764,0.00023,7]
[390725025,1760131834483,-2628.6,0.00023,7]
[390725027,1760131834496,-343.2,0.00023,7]
[390725029,1760131834507,-3557.85167854,0.00023,7]
[390725032,1760131834519,-6611.03303284,0.00023,7]
[390725034,1760131834528,-151.0,0.00023,7]
[390725036,1760131834538,-151.0,0.00023,7]
[390725037,1760131834548,-151.0,0.00023,7]
[390725039,1760131834558,-3619.674658,0.00023,7]
[390725041,1760131834567,-151.0,0.00023,7]
[390725043,1760131834577,-3619.674658,0.00023,7]
[390725045,1760131834588,-182.026084,0.00023,7]
[390725048,1760131834600,-3619.674658,0.00023,7]
[390725050,1760131834611,-3619.674658,0.00023,7]
[390725052,1760131834620,-151.0,0.00023,7]
[390725054,1760131834630,-151.0,0.00023,7]
[390725056,1760131834639,-424.735575,0.00023,7]
[390725057,1760131834649,-424.735575,0.00023,7]
[390725060,1760131834659,-424.735575,0.00023,7]
[390725062,1760131834669,-424.735575,0.00023,7]
[390725064,1760131834679,-151.0,0.00023,7]
[390725066,1760131834689,-151.0,0.00023,7]
[390725068,1760131834699,-205.436884,0.00023,7]
[390725070,1760131834708,-205.436884,0.00023,7]
[390725072,1760131834718,-205.436884,0.00023,7]
[390725074,1760131834727,-205.436884,0.00023,7]
[390725076,1760131834737,-151.0,0.00023,7]
[390725078,1760131834746,-151.0,0.00023,7]
[390725080,1760131834759,-151.0,0.00023,7]
[390725082,1760131834769,-500.0,0.00024267,2]
[390725084,1760131834779,-500.0,0.00024267,2]
[390725086,1760131834788,-500.0,0.00024267,2]
[390725088,1760131834801,-500.0,0.00024267,2]
[390725090,1760131834811,-175.28778743,0.00024267,2]
[390725092,1760131834821,-500.0,0.00024267,2]
[390725094,1760131834832,-500.0,0.00024267,2]
[390725096,1760131834842,-500.0,0.00024267,2]
[390725098,1760131834851,-500.0,0.00024267,2]
[390725100,1760131834861,-500.0,0.00024267,2]
[390725102,1760131834870,-500.0,0.00024267,2]
[390725104,1760131834880,-531.01629028,0.00024267,2]
[390725106,1760131834889,-500.0,0.00024267,2]
[390725108,1760131834898,-500.16391042,0.00024267,2]
[390725110,1760131834907,-500.0,0.00024267,2]
[390725112,1760131834917,-500.0,0.00024267,2]
[390725114,1760131834927,-518.22182432,0.00024267,2]
[390725115,1760131834936,-500.0,0.00024267,2]
[390725117,1760131834945,-171.02368327,0.00024267,2]
[390725119,1760131834954,-1161.74983464,0.00024527,2]
[390725121,1760131834964,-748.54,0.00024597,2]
[390725122,1760131834974,-938.07983324,0.000248,2]
[390725123,1760131834984,-512.39485673,0.00024815,2]
[390725124,1760131834993,-500.41742822,0.00024815,2]
[390725126,1760131835003,-1000.0,0.00024815,2]
[390725128,1760131835014,-695.52709785,0.00024815,2]
[390725130,1760131835024,-1000.0,0.00024815,2]
[390725132,1760131835033,-1000.0,0.00024815,2]
[390725134,1760131835043,-527.19796773,0.00024815,2]
[390725135,1760131835052,-500.0,0.00024815,2]
[390725137,1760131835062,-500.0,0.00024815,2]
[390725139,1760131835072,-500.0,0.00024873,2]
[390725140,1760131835083,-628.56845849,0.00024873,2]
[390725141,1760131835093,-500.0,0.00024873,2]
[390725142,1760131835103,-500.0,0.00024873,2]
[390725143,1760131835113,-510.76695873,0.00024873,2]
[390725145,1760131835122,-449.93089038,0.00024873,2]
[390725147,1760131835131,-500.10989257,0.00024873,2]
[390725149,1760131835141,-500.0,0.00024873,2]
[390725150,1760131835150,-500.0,0.00024873,2]
[390725152,1760131835161,-500.0,0.00024873,2]
[390725153,1760131835171,-500.0,0.00024873,2]
[390725155,1760131835181,-500.0,0.00024873,2]
[390725157,1760131835191,-500.0,0.00024873,2]
[390725159,1760131835200,-500.0,0.00024873,2]
[390725160,1760131835210,-572.89338888,0.00024873,2]
[390725162,1760131835219,-500.0,0.00024873,2]
[390725164,1760131835230,-500.0,0.00024873,2]
[390725166,1760131835240,-500.0,0.00024873,2]
[390725168,1760131835250,-500.0,0.00024873,2]
[390725170,1760131835261,-500.0,0.00024873,2]
[390725172,1760131835272,-500.0,0.00024873,2]
[390725174,1760131835281,-500.0,0.00024873,2]
[390725175,1760131835291,-527.34370932,0.00024873,2]
[390725176,1760131835301,-500.0,0.00024873,2]
[390725177,1760131835311,-164.01418155,0.00024873,2]
[390725178,1760131835321,-500.13998967,0.00024873,2]
[390725179,1760131835333,-500.0,0.00024873,2]
[390725180,1760131835343,-209264.855834,0.000249,2]
[390725181,1760131835352,-151.0,0.000249,7]
[390725182,1760131835362,-151.0,0.000249,7]
[390725183,1760131835372,-151.0,0.000249,7]
[390725184,1760131835381,-3619.674658,0.000249,7]
[390725185,1760131835391,-151.0,0.000249,7]
[390725186,1760131835401,-3619.674658,0.000249,7]
[390725187,1760131835411,-3619.674658,0.000249,7]
[390725188,1760131835421,-3619.674658,0.000249,7]
[390725189,1760131835431,-151.0,0.000249,7]
[390725190,1760131835440,-254.901416,0.000249,7]
[390725191,1760131835450,-424.735575,0.000249,7]
[390725192,1760131835459,-424.735575,0.000249,7]
[390725193,1760131835469,-424.735575,0.000249,7]
[390725194,1760131835478,-424.735575,0.000249,7]
[390725195,1760131835488,-205.436884,0.000249,7]
[390725196,1760131835498,-205.436884,0.000249,7]
[390725197,1760131835507,-205.436884,0.000249,7]
[390725198,1760131835517,-205.436884,0.000249,7]
[390725199,1760131835673,-151.0,0.000249,7]
[390725200,1760131835683,-175.226615,0.000249,7]
[390725201,1760131835693,-151.585028,0.000249,7]
[390725202,1760131835703,-168.10077244,0.00025309,2]
[390725203,1760131835712,-1500.0,0.00025363,2]
[390725204,1760131835722,-1000.0,0.00025421,2]
[390725205,1760131835732,-500.0,0.00025421,2]
[390725206,1760131835741,-500.84748506,0.00025421,2]
[390725207,1760131835753,-1000.0,0.00025421,2]
[390725208,1760131835765,-1000.0,0.00025421,2]
[390725209,1760131835774,-677.87452253,0.00025421,2]
[390725210,1760131835784,-1000.0,0.00025421,2]
[390725211,1760131835793,-500.68375299,0.00025421,2]
[390725212,1760131835806,-500.88756936,0.00025421,2]
[390725213,1760131835815,-1000.0,0.00025421,2]
[390725214,1760131835824,-500.0,0.00025421,2]
[390725215,1760131835837,-500.38039849,0.00025421,2]
[390725216,1760131835847,-1000.0,0.00025421,2]
[390725217,1760131835857,-500.47437712,0.00025421,2]
[390725218,1760131835867,-500.0,0.00025421,2]
[390725219,1760131835877,-1000.0,0.00025421,2]
[390725220,1760131835886,-168.300761,0.00025531,2]
[390725221,1760131835895,-97941.91497958,0.00025886,2]
[390725222,1760131836019,-111322.94085442,0.00025886,2]
[390725223,1760131836030,-938.07983324,0.00025886,2]
[390725224,1760131836040,-151.0,0.00025886,7]
[390725225,1760131836049,-151.0,0.00025886,7]
[390725226,1760131836059,-3619.674658,0.00025886,7]
[390725227,1760131836068,-151.0,0.00025886,7]
[390725228,1760131836078,-3619.674658,0.00025886,7]
[390725229,1760131836089,-3619.674658,0.00025886,7]
[390725230,1760131836099,-3619.674658,0.00025886,7]
[390725231,1760131836108,-151.0,0.00025886,7]
[390725232,1760131836118,-424.735575,0.00025886,7]
[390725233,1760131836127,-424.735575,0.00025886,7]
[390725234,1760131836136,-424.735575,0.00025886,7]
[390725235,1760131836146,-424.735575,0.00025886,7]
[390725236,1760131836155,-205.436884,0.00025886,7]
[390725237,1760131836164,-205.436884,0.00025886,7]
[390725238,1760131836174,-205.436884,0.00025886,7]
[390725239,1760131836183,-205.436884,0.00025886,7]
[390725240,1760131836193,-151.0,0.00025886,7]
[390725241,1760131836203,-441.501,0.00025896,11]
[390725242,1760131836213,-2000.0,0.00025911,2]
[390725243,1760131836223,-919.69373712,0.00025968,2]
[390725244,1760131836232,-1500.0,0.00025968,2]
[390725245,1760131836243,-1500.0,0.00025968,2]
[390725246,1760131836253,-1500.0,0.00025968,2]
[390725247,1760131836262,-151.0,0.0002599,7]
[390725248,1760131836272,-3619.674658,0.0002599,7]
[390725249,1760131836281,-151.0,0.0002599,7]
[390725250,1760131836290,-3619.674658,0.0002599,7]
[390725251,1760131836300,-3619.674658,0.0002599,7]
[390725252,1760131836309,-3619.674658,0.0002599,7]
[390725253,1760131836318,-151.0,0.0002599,7]
[390725254,1760131836328,-151.0,0.0002599,7]
[390725255,1760131836340,-424.735575,0.0002599,7]
[390725256,1760131836350,-424.735575,0.0002599,7]
[390725257,1760131836360,-424.735575,0.0002599,7]
[390725258,1760131836370,-424.735575,0.0002599,7]
[390725259,1760131836379,-205.436884,0.0002599,7]
[390725260,1760131836390,-205.436884,0.0002599,7]
[390725261,1760131836399,-205.436884,0.0002599,7]
[390725262,1760131836409,-205.436884,0.0002599,7]
[390725263,1760131836419,-151.0,0.0002599,7]
[390725264,1760131836428,-16390.41032932,0.00026,30]
[390725265,1760131836438,-1161.74983464,0.0002634,2]
[390725266,1760131836447,-935.67,0.00026353,2]
[390725267,1760131836458,-500.0,0.00026396,2]
[390725268,1760131836468,-2500.0,0.00026458,2]
[390725269,1760131836479,-1304.7610492,0.00026516,2]
[390725270,1760131836489,-2126.96107308,0.00026516,2]
[390725271,1760131836500,-1501.46186656,0.00026516,2]
[390725272,1760131836510,-179.31,0.00026695,7]
[390725273,1760131836519,-500.0,0.00026795,7]
[390725274,1760131836528,-151.0,0.00026795,7]
[390725275,1760131836538,-500.0,0.00026795,7]
[390725276,1760131836547,-500.0,0.00026795,7]
[390725277,1760131836556,-500.0,0.00026795,7]
[390725278,1760131836567,-500.0,0.00026795,7]
[390725279,1760131836576,-500.0,0.00026795,7]
[390725280,1760131836587,-283.66631404,0.00026795,7]
[390725281,1760131836597,-151.0,0.00026795,7]
[390725282,1760131836606,-151.0,0.00026795,7]
[390725283,1760131836615,-500.0,0.00026795,7]
[390725284,1760131836624,-151.0,0.00026795,2]
[390725285,1760131836635,-500.0,0.00026795,7]
[390725286,1760131836645,-500.0,0.00026795,7]
[390725287,1760131836654,-179.31560737,0.00026795,7]
[390725288,1760131836665,-500.0,0.0002685,7]
[390725289,1760131836675,-151.0,0.0002685,7]
[390725290,1760131836684,-500.0,0.0002685,7]
[390725291,1760131836693,-500.0,0.0002685,7]
[390725292,1760131836703,-151.0,0.0002685,7]
[390725293,1760131836712,-151.0,0.0002685,7]
[390725294,1760131836721,-500.0,0.0002685,7]
[390725295,1760131836730,-500.0,0.0002685,7]
[390725296,1760131836740,-500.0,0.0002685,7]
[390725297,1760131836751,-303.89660167,0.00026905,7]
[390725298,1760131836762,-198.0,0.00026905,7]
[390725299,1760131836771,-500.0,0.00026905,7]
[390725300,1760131836781,-607.57153358,0.00026905,7]
[390725301,1760131836790,-151.0,0.00026905,7]
[390725302,1760131836804,-151.0,0.00026905,7]
[390725303,1760131836814,-502.30479449,0.00026905,7]
[390725304,1760131836824,-500.0,0.00026905,7]
[390725305,1760131836834,-500.0,0.00026905,7]
[390725306,1760131836844,-349.0,0.00026959,7]
[390725307,1760131836853,-193.79122132,0.00026959,7]
[390725308,1760131836863,-151.0,0.00026959,7]
[390725309,1760131836873,-500.0,0.00026959,7]
[390725310,1760131836882,-500.0,0.00026959,7]
[390725311,1760131836892,-3000.0,0.00027006,2]
[390725312,1760131836901,-151.0,0.00027014,7]
[390725313,1760131836911,-153.74424798,0.00027014,7]
[390725314,1760131836920,-500.0,0.00027014,7]
[390725315,1760131836930,-544.41282907,0.00027384,2]
[390725316,1760131836939,-500.0,0.00027397,2]
[390725317,1760131836948,-500.0,0.00027397,2]
[390725318,1760131836957,-173.70804231,0.00027397,2]
[390725319,1760131836966,-500.0,0.00027397,60]
[390725320,1760131836976,-500.0,0.00027397,60]
[390725321,1760131836984,-500.0,0.00027397,60]
[390725322,1760131836994,-500.0,0.00027397,60]
[390725323,1760131837003,-168.0,0.00027418,2]
[390725324,1760131837012,-500.0,0.00027431,2]
[390725325,1760131837023,-884.0,0.00027431,2]
[390725326,1760131837033,-151.36530386,0.00027431,2]
[390725327,1760131837043,-500.0,0.00027431,2]
[390725328,1760131837053,-152.15912811,0.00027431,2]
[390725329,1760131837063,-500.0,0.00027478,60]
[390725330,1760131837072,-500.0,0.00027486,2]
[390725331,1760131837083,-884.0,0.00027486,2]
[390725332,1760131837094,-604.0,0.00027486,2]
[390725333,1760131837104,-500.0,0.00027541,2]
[390725334,1760131837115,-884.0,0.00027541,2]
[390725335,1760131837125,-3500.0,0.00027554,5]
[390725336,1760131837135,-168.0,0.00027562,2]
[390725337,1760131837146,-615.88335654,0.00027595,2]
[390725339,1760131837157,-884.0,0.00027595,2]
[390725340,1760131837168,-195.0,0.00027626,7]
[390725341,1760131837178,-884.0,0.0002765,2]
[390725342,1760131837188,-884.0,0.00027705,2]
[390725343,1760131837198,-884.0,0.0002776,2]
[390725344,1760131837208,-884.0,0.00027815,2]
[390725345,1760131837218,-884.0,0.00027869,2]
[390725346,1760131837227,-189.6925741,0.00027878,30]
[390725347,1760131837237,-884.0,0.00027924,2]
[390725348,1760131837246,-884.0,0.00027979,2]
[390725349,1760131837256,-151.0,0.0002799,2]
[390725350,1760131837265,-500.0,0.0002799,2]
[390725351,1760131837274,-151.0,0.0002799,2]
[390725352,1760131837284,-1000.0,0.00028,2]
[390725353,1760131837294,-884.0,0.00028034,2]
[390725354,1760131837303,-151.0,0.00028045,2]
[390725355,1760131837313,-500.0,0.00028045,2]
[390725356,1760131837322,-151.0,0.00028045,2]
[390725357,1760131837334,-232.6261537,0.00028065,2]
[390725358,1760131837343,-884.0,0.00028089,2]
[390725359,1760131837352,-151.0,0.000281,2]
[390725360,1760131837362,-500.0,0.000281,2]
[390725361,1760131837372,-151.0,0.000281,2]
[390725362,1760131837382,-4000.0,0.00028102,5]
[390725363,1760131837392,-195.0,0.00028104,2]
[390725364,1760131837401,-1122.8,0.0002811,2]
[390725365,1760131837411,-884.0,0.00028143,2]
[390725366,1760131837422,-1161.74983464,0.00028153,2]
[390725367,1760131837432,-151.0,0.00028154,2]
[390725368,1760131837442,-500.0,0.00028154,2]
[390725369,1760131837452,-153.00574336,0.00028154,2]
[390725370,1760131837462,-884.0,0.00028198,2]
[390725371,1760131837472,-151.0,0.00028209,2]
[390725372,1760131837482,-500.0,0.00028209,2]
[390725373,1760131837492,-600.0,0.00028226,2]
[390725374,1760131837502,-884.0,0.00028253,2]
[390725375,1760131837513,-151.0,0.00028253,30]
[390725376,1760131837523,-3619.674658,0.00028253,30]
[390725377,1760131837533,-151.0,0.00028253,30]
[390725378,1760131837543,-3619.674658,0.00028253,30]
[390725379,1760131837553,-3619.674658,0.00028253,30]
[390725380,1760131837562,-3619.674654,0.00028253,30]
[390725381,1760131837573,-151.0,0.00028253,30]
[390725382,1760131837584,-217.270765,0.00028253,30]
[390725383,1760131837594,-424.735575,0.00028253,30]
[390725384,1760131837604,-424.735575,0.00028253,30]
[390725385,1760131837613,-424.735575,0.00028253,30]
[390725386,1760131837623,-424.735571,0.00028253,30]
[390725387,1760131837632,-205.436884,0.00028253,30]
[390725388,1760131837646,-205.436884,0.00028253,30]
[390725389,1760131837656,-205.436884,0.00028253,30]
[390725390,1760131837666,-205.43688,0.00028253,30]
[390725391,1760131837676,-151.0,0.00028253,30]
[390725392,1760131837685,-209264.855834,0.00028253,2]
[390725393,1760131837695,-938.07983324,0.00028253,2]
[390725394,1760131837704,-198.0,0.00028264,2]
[390725395,1760131837714,-500.0,0.00028264,2]
[390725396,1760131837724,-168.0,0.00028295,2]
[390725397,1760131837735,-884.0,0.00028308,2]
[390725398,1760131837746,-195.0,0.00028312,2]
[390725399,1760131837761,-154.002527,0.00028313,2]
[390725400,1760131837771,-442.45263202,0.00028319,2]
[390725401,1760131837781,-302.90913937,0.00028357,22]
[390725402,1760131837791,-884.0,0.00028363,2]
[390725403,1760131837803,-1323.04323636,0.00028396,2]
[390725404,1760131837814,-500.0,0.00028409,60]
[390725405,1760131837823,-500.0,0.00028409,2]
[390725406,1760131837834,-500.0,0.0002841,5]
[390725407,1760131837844,-500.0,0.0002841,5]
[390725408,1760131837854,-500.0,0.0002841,20]
[390725409,1760131837864,-500.0,0.0002841,5]
[390725410,1760131837874,-500.0,0.0002841,20]
[390725411,1760131837884,-500.0,0.0002841,5]
[390725413,1760131837895,-884.0,0.00028417,2]
[390725415,1760131837906,-1000.0,0.00028421,4]
[390725418,1760131837917,-391.8516513,0.00028466,30]
[390725421,1760131837927,-391.8516513,0.00028466,30]
[390725424,1760131837939,-391.8516513,0.00028466,30]
[390725427,1760131837949,-391.8516513,0.00028466,30]
[390725432,1760131837963,-500.0,0.0002847,2]
[390725435,1760131837973,-151.0,0.0002847,2]
[390725439,1760131837984,-500.0,0.0002847,2]
[390725444,1760131837994,-500.0,0.0002847,2]